fUSD/lending_fUSD_20240424
["ID","MTS","AMOUNT","RATE_DAILY","PERIOD"]
[323416645,1713973870242,-1520.14,0.00012602,2]
[323416646,1713973870253,-500.0,0.00012602,2]
[323416647,1713973870263,-500.0,0.00012602,2]
[323416648,1713973870273,-500.0,0.00012602,2]
[323416649,1713973870283,-500.0,0.00012602,2]
[323416650,1713973870293,-500.0,0.00012602,2]
[323416651,1713973870304,-1553.07,0.00012602,2]
[323416652,1713973870313,-7940.4,0.00012602,2]
[323416653,1713973870323,-504.14,0.00012602,2]
[323416654,1713973870333,-3869.35,0.00012602,2]
[323416655,1713973870343,-500.0,0.00012602,2]
[323416656,1713973870353,-2581.86,0.00012602,2]
[323416657,1713973870363,-532.51,0.00012602,2]
[323416658,1713973870373,-3595.17,0.00012602,2]
[323416659,1713973870383,-620.93,0.00012602,2]
[323416660,1713973870396,-603.57991909,0.00012602,2]
[323416661,1713973870407,-2106.5,0.00012602,2]
[323416662,1713973870417,-500.0,0.00012602,2]
[323416663,1713973870428,-7750.67,0.00012602,2]
[323416664,1713973870439,-2257.57,0.00012602,2]
[323416665,1713973870450,-536.93,0.00012704,2]
[323416666,1713973870461,-8068.06636859,0.0001274,2]
[323416667,1713973870471,-2000.0,0.0001287,2]
[323416668,1713973870482,-2397.18,0.00012875,2]
[323416669,1713973870492,-4434.22,0.00012875,2]
[323416670,1713973870503,-3007.56,0.00012875,2]
[323416671,1713973870513,-3007.56,0.00012875,2]
[323416672,1713973870523,-5347.4,0.00012875,2]
[323416673,1713973870534,-2557.14,0.00012875,2]
[323416674,1713973870544,-908.08,0.00012875,2]
[323416675,1713973870554,-2154.97,0.00012875,2]
[323416676,1713973870565,-2682.86,0.00012875,2]
[323416677,1713973870575,-3494.09,0.00012875,2]
[323416678,1713973870585,-2100.4,0.00012875,2]
[323416679,1713973870595,-1049.7,0.00012875,2]
[323416680,1713973870606,-8393.88,0.00012875,2]
[323416681,1713973870616,-1833.53147192,0.00012875,2]
[323416682,1713973870635,-10754.48852808,0.00012875,2]
[323416683,1713973870651,-2129.88,0.00012875,2]
[323416684,1713973870661,-667.29,0.00012876,2]
[323416685,1713973870671,-506.27604157,0.00012876,2]
[323416686,1713973870681,-503.716109,0.00012876,2]
[323416687,1713973870692,-949.51,0.00012876,2]
[323416688,1713973870702,-500.0,0.00012876,2]
[323416689,1713973870712,-500.0,0.00012876,2]
[323416690,1713973870723,-563.58,0.00012876,2]
[323416691,1713973870733,-500.0,0.00012876,2]
[323416692,1713973870743,-500.0,0.00012876,2]
[323416693,1713973870753,-500.0,0.00012876,2]
[323416694,1713973870764,-500.0,0.00012876,2]
[323416695,1713973870775,-277.8,0.00012876,2]
[323416696,1713973870785,-500.0,0.00012876,2]
[323416697,1713973870795,-500.0,0.00012876,2]
[323416698,1713973870805,-820.37,0.00012876,2]
[323416699,1713973870815,-500.0,0.00012876,2]
[323416700,1713973870826,-450.57943431,0.00012876,2]
[323416701,1713973870836,-609.4,0.00012876,2]
[323416702,1713973870846,-500.0,0.00012876,2]
[323416703,1713973870856,-500.0,0.00012876,2]
[323416704,1713973870867,-500.0,0.00012876,2]
[323416705,1713973870877,-238.68,0.00012876,2]
[323416706,1713973870888,-500.0,0.00012876,2]
[323416707,1713973870903,-790.5,0.00012876,2]
[323416708,1713973870914,-500.0,0.00012876,2]
[323416709,1713973870925,-948.45,0.00012876,2]
[323416710,1713973870935,-500.0,0.00012876,2]
[323416711,1713973870946,-500.0,0.00012876,2]
[323416712,1713973870956,-500.0,0.00012876,2]
[323416713,1713973870967,-500.0,0.00012876,2]
[323416714,1713973870977,-1612.81,0.00012876,2]
[323416715,1713973870987,-500.0,0.00012876,2]
[323416716,1713973870997,-540.2,0.00012876,2]
[323416717,1713973871008,-500.0,0.00012876,2]
[323416718,1713973871018,-500.0,0.00012876,2]
[323416719,1713973871029,-711.69,0.00012876,2]
[323416720,1713973871138,-568.11,0.00012876,2]
[323416721,1713973871151,-1601.08,0.00012876,2]
[323416722,1713973871161,-568.3,0.00012876,2]
[323416723,1713973871171,-500.0,0.00012876,2]
[323416724,1713973871181,-500.0,0.00012876,2]
[323416725,1713973871192,-500.0,0.00012876,2]
[323416726,1713973871202,-500.0,0.00012876,2]
[323416727,1713973871212,-523.14,0.00012876,2]
[323416728,1713973871223,-3252.85,0.00012876,2]
[323416729,1713973871234,-992.38,0.00012876,2]
[323416730,1713973871244,-500.0,0.00012876,2]
[323416731,1713973871255,-842.16,0.00012876,2]
[323416732,1713973871265,-500.0,0.00012876,2]
[323416733,1713973871275,-606.36,0.00012876,2]
[323416734,1713973871285,-1485.06,0.00012876,2]
[323416735,1713973871296,-500.0,0.00012876,2]
[323416736,1713973871305,-717.81,0.00012876,2]
[323416737,1713973871315,-1478.51,0.00012876,2]
[323416738,1713973871325,-500.0,0.00012876,2]
[323416739,1713973871335,-500.0,0.00012876,2]
[323416740,1713973871345,-548.59,0.00012876,2]
[323416741,1713973871355,-1265.7,0.00012876,2]
[323416742,1713973871365,-500.0,0.00012876,2]
[323416743,1713973871375,-500.0,0.00012876,2]
[323416744,1713973871385,-915.02,0.00012876,2]
[323416745,1713973871395,-929.5,0.00012876,2]
[323416746,1713973871405,-820.02,0.00012876,2]
[323416747,1713973871415,-500.0,0.00012876,2]
[323416748,1713973871425,-500.0,0.00012876,2]
[323416749,1713973871434,-333.28657406,0.00012876,2]
[323416750,1713973871445,-2057.46,0.00012876,2]
[323416751,1713973871455,-500.0,0.00012876,2]
[323416752,1713973871465,-500.0,0.00012876,2]
[323416753,1713973871474,-731.11,0.00012876,2]
[323416754,1713973871484,-500.0,0.00012876,2]
[323416755,1713973871494,-1747.26,0.00012876,2]
[323416756,1713973871504,-527.58,0.00012876,2]
[323416757,1713973871513,-750.07,0.00012876,2]
[323416758,1713973871523,-1164.73,0.00012876,2]
[323416759,1713973871532,-500.0,0.00012876,2]
[323416760,1713973871542,-2166.34,0.00012876,2]
[323416761,1713973871552,-845.41,0.00012876,2]
[323416762,1713973871562,-500.0,0.00012876,2]
[323416763,1713973871572,-500.0,0.00012876,2]
[323416764,1713973871582,-500.0,0.00012876,2]
[323416765,1713973871592,-500.0,0.00012876,2]
[323416766,1713973871602,-818.75,0.00012876,2]
[323416767,1713973871612,-652.43,0.00012876,2]
[323416768,1713973871621,-871.72,0.00012876,2]
[323416769,1713973871631,-500.0,0.00012876,2]
[323416770,1713973871642,-500.0,0.00012876,2]
[323416771,1713973871652,-500.0,0.00012876,2]
[323416772,1713973871662,-2572.82,0.00012876,2]
[323416773,1713973871672,-1436.45,0.00012876,2]
[323416774,1713973871682,-2295.35,0.00012876,2]
[323416775,1713973871692,-500.0,0.00012876,2]
[323416776,1713973871703,-500.0,0.00012876,2]
[323416777,1713973871713,-2029.6,0.00012876,2]
[323416778,1713973871723,-500.0,0.00012876,2]
[323416779,1713973871733,-8677.54,0.00012876,2]
[323416780,1713973871744,-500.0,0.00012876,2]
[323416781,1713973871754,-905.45,0.00012876,2]
[323416782,1713973871764,-500.0,0.00012876,2]
[323416783,1713973871773,-500.0,0.00012876,2]
[323416784,1713973871783,-558.24,0.00012876,2]
[323416785,1713973871793,-500.0,0.00012876,2]
[323416786,1713973871803,-1504.58,0.00012876,2]
[323416787,1713973871813,-500.0,0.00012876,2]
[323416788,1713973871822,-514.67,0.00012876,2]
[323416789,1713973871832,-500.0,0.00012876,2]
[323416790,1713973871842,-2367.93,0.00012876,2]
[323416791,1713973871852,-2049.01,0.00012876,2]
[323416792,1713973871862,-563.66,0.00012876,2]
[323416793,1713973871872,-500.0,0.00012876,2]
[323416794,1713973871882,-831.05,0.00012876,2]
[323416795,1713973871895,-832.5,0.00012876,2]
[323416796,1713973871906,-773.07,0.00012876,2]
[323416797,1713973871917,-1885.66,0.00012876,2]
[323416798,1713973871927,-500.0,0.00012876,2]
[323416799,1713973871936,-500.0,0.00012876,2]
[323416800,1713973871946,-500.0,0.00012876,2]
[323416801,1713973871956,-1225.98,0.00012876,2]
[323416802,1713973871965,-4156.64,0.00012876,2]
[323416803,1713973871975,-1912.6,0.00012876,2]
[323416804,1713973871985,-2203.2,0.00012876,2]
[323416805,1713973871995,-880.27,0.00012876,2]
[323416806,1713973872005,-3146.1,0.00012876,2]
[323416807,1713973872015,-1078.5,0.00012876,2]
[323416808,1713973872025,-705.82,0.00012876,2]
[323416809,1713973872035,-500.0,0.00012876,2]
[323416810,1713973872045,-500.0,0.00012876,2]
[323416811,1713973872055,-2436.51466793,0.00012876,2]
[323416812,1713973872070,-586.64813326,0.00012876,2]
[323416813,1713973872085,-333.70314074,0.00012876,2]
[323416814,1713973872099,-463.76405807,0.00012876,2]
[323416815,1713973872108,-500.0,0.00012876,2]
[323416816,1713973872118,-2113.48,0.00012876,2]
[323416817,1713973872131,-178.06588096,0.00012876,2]
[323416818,1713973872156,-659.93411904,0.00012876,2]
[323416819,1713973872166,-1931.43,0.00012876,2]
[323416820,1713973872176,-2703.75,0.00012876,2]
[323416821,1713973872186,-517.78588096,0.00012876,2]
[323416822,1713973872198,-795.425,0.00012876,2]
[323416823,1713973872216,-469.78257235,0.00012876,2]
[323416824,1713973872236,-1039.26654669,0.00012876,2]
[323416825,1713973872246,-2276.67,0.00012876,2]
[323416826,1713973872255,-500.0,0.00012876,2]
[323416827,1713973872265,-500.0,0.00012876,2]
[323416828,1713973872275,-570.66,0.00012876,2]
[323416829,1713973872285,-500.0,0.00012876,2]
[323416830,1713973872294,-1122.05773623,0.00012876,2]
[323416831,1713973872481,-335.60142443,0.000108,3]
[323416832,1713973872511,-164.39857557,0.000108,3]
[323416833,1713973872521,-99.80942443,0.00012876,2]
[323416834,1713973872609,-370.42283934,0.00012876,2]
[323416835,1713973872619,-738.44880232,0.00012876,2]
[323416836,1713973872959,-761.05460391,0.00012876,2]
[323416837,1713973872971,-276.90558802,0.00012876,2]
[323416838,1713973872984,-967.90763864,0.00012876,2]
[323416839,1713973873006,-315.42336711,0.00012876,2]
[323416840,1713973873016,-204.74393689,0.00012876,2]
[323416841,1713973873030,-343.37606311,0.00012876,2]
[323416842,1713973873040,-500.0,0.00012876,2]
[323416843,1713973873051,-1164.60393689,0.00012876,2]
[323416844,1713973873076,-295.25514135,0.00012876,2]
[323416845,1713973873090,-1001.64092176,0.00012876,2]
[323416846,1713973873100,-615.38,0.00012876,2]
[323416847,1713973873110,-1324.12,0.00012876,2]
[323416848,1713973873123,-625.20560403,0.00012876,2]
[323416849,1713973873336,-572.8,0.00012876,2]
[323416850,1713973873350,-784.50318454,0.00012876,2]
[323416851,1713973873362,-1564.95026875,0.00012876,2]
[323416852,1713973901458,151.0,0.00019732,120]
[323416856,1713974234275,477.56,8.33e-05,2]
[323416857,1713974283986,15729.60326305,0.00025975,90]
[323416865,1713974332583,-200.0,0.00010161,2]
[323416866,1713974332605,-781.43629319,0.00010288,2]
[323416867,1713974332891,-1244.68840219,0.00010288,2]
[323416868,1713974332912,-194.42275138,0.00010289,2]
[323416869,1713974332934,-781.43629319,0.00010289,2]
[323416870,1713974332957,-1608.67686001,0.0001029,2]
[323416871,1713974332981,-178.67,0.00010294,2]
[323416872,1713974333002,-250.0,0.00010333,2]
[323416873,1713974333025,-600.0,0.00010377,2]
[323416874,1713974333050,-278.47,0.00010418,2]
[323416875,1713974333071,-857.85709587,0.000105,2]
[323416876,1713974333095,-2106.81,0.00010501,2]
[323416877,1713974333117,-23900.0,0.00010569,2]
[323416878,1713974333139,-477.56,0.00010594,2]
[323416879,1713974333161,-166.8,0.0001067,2]
[323416880,1713974333182,-420.48,0.00010713,2]
[323416881,1713974333204,-1000.0,0.000109,3]
[323416882,1713974333227,-338.56460926,0.00010956,2]
[323416883,1713974333252,-313.7807292,0.00010956,2]
[323416884,1713974333274,-262.25935508,0.00010956,2]
[323416885,1713974333297,-359.32667582,0.00010956,2]
[323416886,1713974333319,-236.7241979,0.00010956,2]
[323416887,1713974333340,-155.08534021,0.00010956,2]
[323416888,1713974333361,-2321.50502624,0.00010957,2]
[323416889,1713974333382,-2089.88115604,0.00010957,2]
[323416890,1713974333403,-5702.72620702,0.00010957,2]
[323416891,1713974333424,-4410.215699,0.00010957,2]
[323416892,1713974333445,-500.0,0.00010958,2]
[323416893,1713974333467,-500.0,0.00010958,2]
[323416894,1713974333487,-500.0,0.00010958,2]
[323416895,1713974333509,-500.0,0.00010958,2]
[323416896,1713974333530,-260.44876706,0.00010958,2]
[323416897,1713974333551,-500.0,0.00010958,2]
[323416898,1713974333573,-500.0,0.00010958,2]
[323416899,1713974333594,-500.0,0.00010958,2]
[323416900,1713974333615,-500.0,0.00010958,2]
[323416901,1713974333637,-518.06273328,0.00010958,2]
[323416902,1713974333658,-500.0,0.00010958,2]
[323416903,1713974333680,-590.02,0.00010958,2]
[323416904,1713974333701,-232.27531272,0.00010958,2]
[323416905,1713974333723,-500.0,0.00010958,2]
[323416906,1713974333744,-500.0,0.00010958,2]
[323416907,1713974333765,-561.44,0.00010958,2]
[323416908,1713974333788,-208.72015495,0.00010958,2]
[323416909,1713974333809,-500.0,0.00010958,2]
[323416910,1713974333831,-500.0,0.00010958,2]
[323416911,1713974333852,-500.0,0.00010958,2]
[323416912,1713974333874,-500.0,0.00010958,2]
[323416913,1713974333895,-500.0,0.00010958,2]
[323416914,1713974333917,-500.0,0.00010958,2]
[323416915,1713974333937,-610.01,0.00010958,2]
[323416916,1713974333962,-500.0,0.00010958,2]
[323416917,1713974333985,-500.0,0.00010958,2]
[323416918,1713974334007,-500.0,0.00010958,2]
[323416919,1713974334031,-632.3,0.00010958,2]
[323416920,1713974334053,-500.0,0.00010958,2]
[323416921,1713974334076,-500.0,0.00010958,2]
[323416922,1713974334100,-500.0,0.00010958,2]
[323416923,1713974334122,-546.68,0.00010958,2]
[323416924,1713974334144,-500.0,0.00010958,2]
[323416925,1713974334165,-283.70255646,0.00010958,2]
[323416926,1713974334186,-500.0,0.00010958,2]
[323416927,1713974334212,-500.0,0.00010958,2]
[323416928,1713974334235,-843.8,0.00010958,2]
[323416929,1713974334256,-500.0,0.00010958,2]
[323416930,1713974334279,-560.44370937,0.00010958,2]
[323416931,1713974334301,-429.14,0.00010958,2]
[323416932,1713974334328,-569.73200933,0.00010958,2]
[323416933,1713974334353,-500.0,0.00010958,2]
[323416934,1713974334375,-500.0,0.00010958,2]
[323416935,1713974334399,-500.0,0.00010958,2]
[323416936,1713974334421,-500.0,0.00010958,2]
[323416937,1713974334444,-500.0,0.00010958,2]
[323416938,1713974334471,-192.37441447,0.00010958,2]
[323416939,1713974334493,-500.0,0.00010958,2]
[323416940,1713974334519,-500.0,0.00010958,2]
[323416941,1713974334540,-500.0,0.00010958,2]
[323416942,1713974334561,-500.0,0.00010958,2]
[323416943,1713974334581,-1164.84,0.00010958,2]
[323416944,1713974334602,-500.0,0.00010958,2]
[323416945,1713974334622,-500.44914781,0.00010958,2]
[323416946,1713974334643,-500.0,0.00010958,2]
[323416947,1713974334664,-500.0,0.00010958,2]
[323416948,1713974334687,-1371.64,0.00010958,2]
[323416949,1713974334712,-500.0,0.00010958,2]
[323416950,1713974334734,-500.0,0.00010958,2]
[323416951,1713974334764,-500.0,0.00010958,2]
[323416952,1713974334787,-500.0,0.00010958,2]
[323416953,1713974334808,-692.35,0.00010958,2]
[323416954,1713974334829,-500.0,0.00010958,2]
[323416955,1713974334850,-500.0,0.00010958,2]
[323416956,1713974334871,-500.0,0.00010958,2]
[323416957,1713974334892,-500.0,0.00010958,2]
[323416958,1713974334913,-500.0,0.00010958,2]
[323416959,1713974334933,-500.71300312,0.00010958,2]
[323416960,1713974334955,-500.0,0.00010958,2]
[323416961,1713974334979,-1444.22,0.00010958,2]
[323416962,1713974335000,-500.62293222,0.00010958,2]
[323416963,1713974335022,-984.26,0.00010958,2]
[323416964,1713974335045,-500.05,0.00010958,2]
[323416965,1713974335069,-297.91424604,0.00010958,2]
[323416966,1713974335092,-500.0,0.00010958,2]
[323416967,1713974335114,-500.0,0.00010958,2]
[323416968,1713974335135,-648.05208936,0.00010958,2]
[323416969,1713974335158,-500.0,0.00010958,2]
[323416970,1713974335180,-985.68,0.00010958,2]
[323416971,1713974335201,-500.0,0.00010958,2]
[323416972,1713974335226,-644.29969513,0.00010958,2]
[323416973,1713974335250,-500.0,0.00010958,2]
[323416974,1713974335272,-500.0,0.00010958,2]
[323416975,1713974335298,-500.0,0.00010958,2]
[323416976,1713974335320,-1715.21,0.00010958,2]
[323416977,1713974335341,-500.0,0.00010958,2]
[323416978,1713974335363,-501.4189189,0.00010958,2]
[323416979,1713974335390,-500.0,0.00010958,2]
[323416980,1713974335414,-500.0,0.00010958,2]
[323416981,1713974335435,-330.53537436,0.00010958,2]
[323416982,1713974335459,-619.66,0.00010958,2]
[323416983,1713974335479,-501.35230715,0.00010958,2]
[323416984,1713974335502,-500.0,0.00010958,2]
[323416985,1713974335525,-500.0,0.00010958,2]
[323416986,1713974335547,-500.0,0.00010958,2]
[323416987,1713974335568,-501.21073607,0.00010958,2]
[323416988,1713974335590,-603.63,0.00010958,2]
[323416989,1713974335613,-518.91450968,0.00010958,2]
[323416990,1713974335636,-1530.23,0.00010958,2]
[323416991,1713974335656,-501.39560467,0.00010958,2]
[323416992,1713974335678,-500.0,0.00010958,2]
[323416993,1713974335699,-500.0,0.00010958,2]
[323416994,1713974335724,-545.84,0.00010958,2]
[323416995,1713974335746,-500.0,0.00010958,2]
[323416996,1713974335770,-494.47,0.00010958,2]
[323416997,1713974335792,-500.0,0.00010958,2]
[323416998,1713974335815,-500.0,0.00010958,2]
[323416999,1713974335839,-500.0,0.00010958,2]
[323417000,1713974335861,-500.0,0.00010958,2]
[323417001,1713974335884,-1578.62,0.00010958,2]
[323417002,1713974335905,-247.42305475,0.00010958,2]
[323417003,1713974335926,-500.0,0.00010958,2]
[323417004,1713974335947,-502.40225065,0.00010958,2]
[323417005,1713974335971,-500.0,0.00010958,2]
[323417006,1713974335993,-500.0,0.00010958,2]
[323417007,1713974336021,-343.12,0.00010958,2]
[323417008,1713974336047,-505.97976736,0.00010958,2]
[323417009,1713974336070,-500.0,0.00010958,2]
[323417010,1713974336092,-647.7,0.00010958,2]
[323417011,1713974336114,-501.75739347,0.00010958,2]
[323417012,1713974336137,-500.0,0.00010958,2]
[323417013,1713974336160,-595.62,0.00010958,2]
[323417014,1713974336183,-1195.25,0.00010958,2]
[323417015,1713974336205,-500.0,0.00010958,2]
[323417016,1713974336235,-530.04683792,0.00010958,2]
[323417017,1713974336257,-500.59751087,0.00010958,2]
[323417018,1713974336280,-797.32,0.00010958,2]
[323417019,1713974336302,-500.0,0.00010958,2]
[323417020,1713974336324,-624.10426463,0.00010958,2]
[323417021,1713974336345,-500.0,0.00010958,2]
[323417022,1713974336367,-515.38,0.00010958,2]
[323417023,1713974336389,-499.24202349,0.00010958,2]
[323417024,1713974336415,-500.0,0.00010958,2]
[323417025,1713974336439,-500.0,0.00010958,2]
[323417026,1713974336474,-1802.5,0.00010958,2]
[323417027,1713974336501,-500.0,0.00010958,2]
[323417028,1713974336527,-500.0,0.00010958,2]
[323417029,1713974336553,-500.71961505,0.00010958,2]
[323417030,1713974336578,-500.0,0.00010958,2]
[323417031,1713974336603,-563.61,0.00010958,2]
[323417032,1713974336629,-500.0,0.00010958,2]
[323417033,1713974336654,-500.0,0.00010958,2]
[323417034,1713974336677,-500.0,0.00010958,2]
[323417035,1713974336701,-586.84,0.00010958,2]
[323417036,1713974336734,-234.84589385,0.00010958,2]
[323417037,1713974336756,-500.0,0.00010958,2]
[323417038,1713974336778,-500.0,0.00010958,2]
[323417039,1713974336800,-554.03,0.00010958,2]
[323417040,1713974336822,-500.0,0.00010958,2]
[323417041,1713974336843,-500.0,0.00010958,2]
[323417042,1713974336864,-500.0,0.00010958,2]
[323417043,1713974336886,-500.0,0.00010958,2]
[323417044,1713974336908,-518.2,0.00010958,2]
[323417045,1713974336930,-406.74,0.00010958,2]
[323417046,1713974336950,-500.0,0.00010958,2]
[323417047,1713974337185,-882.75,0.00010958,2]
[323417048,1713974337212,-500.0,0.00010958,2]
[323417049,1713974337236,-573.74,0.00010958,2]
[323417050,1713974337257,-514.83,0.00010958,2]
[323417051,1713974337278,-500.0,0.00010958,2]
[323417052,1713974337301,-1408.98,0.00010958,2]
[323417053,1713974337324,-500.0,0.00010958,2]
[323417054,1713974337346,-500.0,0.00010958,2]
[323417055,1713974337368,-2839.11,0.00010958,2]
[323417056,1713974337390,-1622.2,0.00010958,2]
[323417057,1713974337412,-214.99223118,0.00010958,2]
[323417058,1713974337435,-9297.92,0.00010958,2]
[323417059,1713974337456,-500.0,0.00010958,2]
[323417060,1713974337483,-500.0,0.00010958,2]
[323417061,1713974337506,-500.0,0.00010958,2]
[323417062,1713974337527,-500.0,0.00010958,2]
[323417063,1713974337549,-500.0,0.00010958,2]
[323417064,1713974337572,-500.0,0.00010958,2]
[323417065,1713974337594,-2143.87,0.00010958,2]
[323417066,1713974337615,-500.55926111,0.00010958,2]
[323417067,1713974337637,-500.0,0.00010958,2]
[323417068,1713974337657,-500.0,0.00010958,2]
[323417069,1713974337679,-500.0,0.00010958,2]
[323417070,1713974337701,-500.0,0.00010958,2]
[323417071,1713974337725,-2253.34,0.00010958,2]
[323417072,1713974337746,-500.0,0.00010958,2]
[323417073,1713974337768,-995.27,0.00010958,2]
[323417074,1713974337790,-874.37,0.00010958,2]
[323417075,1713974337812,-500.0,0.00010958,2]
[323417076,1713974337834,-500.0,0.00010958,2]
[323417077,1713974337857,-7573.6,0.00010958,2]
[323417078,1713974337879,-512.61,0.00010958,2]
[323417079,1713974337903,-780.06,0.00010958,2]
[323417080,1713974337925,-500.0,0.00010958,2]
[323417081,1713974337946,-1373.9,0.00010958,2]
[323417082,1713974337970,-500.0,0.00010958,2]
[323417083,1713974337991,-500.0,0.00010958,2]
[323417084,1713974338013,-500.0,0.00010958,2]
[323417085,1713974338035,-500.0,0.00010958,2]
[323417086,1713974338057,-8058.75,0.00010958,2]
[323417087,1713974338079,-500.0,0.00010958,2]
[323417088,1713974338100,-500.0,0.00010958,2]
[323417089,1713974338123,-1061.52,0.00010958,2]
[323417090,1713974338144,-500.0,0.00010958,2]
[323417091,1713974338167,-563.49,0.00010958,2]
[323417092,1713974338188,-622.9,0.00010958,2]
[323417093,1713974338210,-500.0,0.00010958,2]
[323417094,1713974338235,-500.0,0.00010958,2]
[323417095,1713974338256,-1521.58,0.00010958,2]
[323417096,1713974338282,-2583.02,0.00010958,2]
[323417097,1713974338307,-500.0,0.00010958,2]
[323417098,1713974338330,-500.0,0.00010958,2]
[323417099,1713974338351,-500.0,0.00010958,2]
[323417100,1713974338374,-500.0,0.00010958,2]
[323417101,1713974338397,-449.79,0.00010958,2]
[323417102,1713974338419,-520.15,0.00010958,2]
[323417103,1713974338443,-500.0,0.00010958,2]
[323417104,1713974338466,-2849.06,0.00010958,2]
[323417105,1713974338487,-500.0,0.00010958,2]
[323417106,1713974338508,-489.82,0.00010958,2]
[323417107,1713974338529,-500.0,0.00010958,2]
[323417108,1713974338550,-1295.1,0.00010958,2]
[323417109,1713974338570,-526.65,0.00010958,2]
[323417110,1713974338591,-500.0,0.00010958,2]
[323417111,1713974338614,-500.0,0.00010958,2]
[323417112,1713974338635,-2678.79,0.00010958,2]
[323417113,1713974338656,-6957.74,0.00010958,2]
[323417114,1713974338676,-500.0,0.00010958,2]
[323417115,1713974338698,-500.0,0.00010958,2]
[323417116,1713974338723,-500.0,0.00010958,2]
[323417117,1713974338745,-500.0,0.00010958,2]
[323417118,1713974338766,-772.47,0.00010958,2]
[323417119,1713974338788,-500.0,0.00010958,2]
[323417120,1713974338810,-1709.47,0.00010958,2]
[323417121,1713974338832,-3959.99,0.00010958,2]
[323417122,1713974338854,-500.0,0.00010958,2]
[323417123,1713974338875,-500.0,0.00010958,2]
[323417124,1713974338897,-549.46,0.00010958,2]
[323417125,1713974338919,-983.83,0.00010958,2]
[323417126,1713974338940,-520.33,0.00010958,2]
[323417127,1713974338963,-500.0,0.00010958,2]
[323417128,1713974338985,-4106.28,0.00010958,2]
[323417129,1713974339005,-500.0,0.00010958,2]
[323417130,1713974339029,-500.0,0.00010958,2]
[323417131,1713974339051,-500.0,0.00010958,2]
[323417132,1713974339072,-534.39606197,0.00010958,2]
[323417133,1713974339094,-500.0,0.00010958,2]
[323417134,1713974339116,-555.0,0.00010958,2]
[323417135,1713974339137,-500.0,0.00010958,2]
[323417136,1713974339159,-926.15,0.00010958,2]
[323417137,1713974339181,-500.0,0.00010958,2]
[323417138,1713974339202,-1468.8,0.00010958,2]
[323417139,1713974339227,-500.0,0.00010958,2]
[323417140,1713974339251,-1200.84,0.00010958,2]
[323417141,1713974339272,-500.0,0.00010958,2]
[323417142,1713974339294,-500.0,0.00010958,2]
[323417143,1713974339316,-5737.85,0.00010958,2]
[323417144,1713974339338,-785.92,0.00010958,2]
[323417145,1713974339360,-817.32,0.00010958,2]
[323417146,1713974339381,-3081.66,0.00010958,2]
[323417147,1713974339404,-500.0,0.00010958,2]
[323417148,1713974339426,-500.0,0.00010958,2]
[323417149,1713974339447,-1367.29,0.00010958,2]
[323417150,1713974339470,-617.15,0.00010958,2]
[323417151,1713974339491,-500.0,0.00010958,2]
[323417152,1713974339512,-2338.47,0.00010958,2]
[323417153,1713974339537,-500.0,0.00010958,2]
[323417154,1713974339560,-500.0,0.00010958,2]